bitfinex-derivatives/quotes_BNBF0:USTF0_20250608
["timestamp","ask_amount","ask_price","bid_price","bid_amount"]
[1749420670337,1.428,653.9,652.87,0.3063397]
[1749420670338,1.428,653.9,653.6,1.51946042]
[1749420670536,1.428,653.9,653.61,1.51946042]
[1749420671239,1.428,653.9,653.6,1.51946042]
[1749420671438,1.428,653.9,653.61,1.51946042]
[1749420675239,1.428,653.9,653.62,1.51946042]
[1749420675435,1.428,653.9,653.61,1.51946042]
[1749420675736,1.428,653.9,653.62,1.51946042]
[1749420676235,1.428,653.9,653.61,1.51946042]
[1749420676637,1.428,653.9,653.62,1.51946042]
[1749420677342,1.428,653.9,653.67,1.51946042]
[1749420679344,1.428,653.9,653.66,1.51946042]
[1749420679542,1.428,653.9,653.67,1.51946042]
[1749420679741,0.26605606,654.24,653.67,1.51946042]
[1749420680341,0.26605606,654.24,653.66,1.51946042]
[1749420680541,0.26605606,654.24,653.67,1.51946042]
[1749420682048,0.26605606,654.24,653.66,1.51946042]
[1749420682747,1.437,654.23,653.66,1.51946042]
[1749420686545,1.437,654.23,653.68,1.51946042]
[1749420686746,1.437,654.23,653.72,1.51946042]
[1749420687148,1.437,654.23,653.69,1.51946042]
[1749420687641,1.437,654.23,653.71,1.51946042]
[1749420688545,1.437,654.23,653.7,1.51946042]
[1749420688744,1.437,654.23,653.71,1.51946042]
[1749420689750,1.437,654.23,653.72,1.51946042]
[1749420692652,1.437,654.23,653.73,1.51946042]
[1749420695457,1.437,654.23,653.71,1.51946042]
[1749420696352,1.437,654.23,653.74,1.51946042]
[1749420696654,1.437,654.23,653.75,1.51946042]
[1749420696855,1.437,654.23,653.74,1.51946042]
[1749420697157,1.437,654.23,653.73,1.51946042]
[1749420700058,1.437,654.23,653.74,1.51946042]
[1749420706756,1.437,654.23,653.76,1.51946042]
[1749420707556,1.437,654.23,653.77,1.51946042]
[1749420710262,1.437,654.23,653.78,1.51946042]
[1749420711264,1.437,654.23,653.79,1.51946042]
[1749420712366,1.437,654.23,653.26,3.80295298]
[1749420712367,1.437,654.23,653.78,1.51946042]
[1749420712561,1.437,654.23,653.82,1.51946042]
[1749420712765,1.437,654.23,653.83,1.51946042]
[1749420712965,1.437,654.23,653.82,1.51946042]
[1749420713465,1.437,654.23,653.83,1.51946042]
[1749420714266,1.437,654.23,653.84,1.51946042]
[1749420715461,1.437,654.23,653.86,1.51946042]
[1749420715863,1.437,654.23,653.84,1.51946042]
[1749420716262,1.437,654.23,653.85,1.51946042]
[1749420716467,1.437,654.23,653.86,1.51946042]
[1749420716663,1.437,654.23,653.88,1.51946042]
[1749420717464,1.437,654.23,653.89,1.51946042]
[1749420717869,1.437,654.23,653.88,1.51946042]
[1749420718370,1.437,654.23,653.89,1.51946042]
[1749420720669,1.437,654.23,653.88,1.51946042]
[1749420721265,1.437,654.23,653.86,1.51946042]
[1749420721465,1.437,654.23,653.87,1.51946042]
[1749420721668,1.437,654.23,653.86,1.51946042]
[1749420722270,1.437,654.23,653.88,1.51946042]
[1749420723672,1.437,654.23,653.89,1.51946042]
[1749420724471,1.437,654.23,653.77,1.51946042]
[1749420724667,1.437,654.23,653.73,1.51946042]
[1749420724873,1.437,654.23,653.71,1.51946042]
[1749420725169,1.437,654.23,653.7,1.51946042]
[1749420725370,1.437,654.23,653.69,1.51946042]
[1749420726369,1.437,654.23,653.52,2.2737665]
[1749420726774,1.437,654.23,653.51,2.2737665]
[1749420727071,1.437,654.23,653.5,2.2737665]
[1749420727273,1.437,654.23,653.49,2.2737665]
[1749420727867,1.437,654.23,652.87,0.3063397]
[1749420727868,1.437,654.23,653.48,2.2737665]
[1749420728470,1.437,654.23,653.47,2.2737665]
[1749420728871,1.437,654.23,653.58,2.2737665]
[1749420729074,1.437,654.23,653.57,2.2737665]
[1749420730474,2.45719194,654.23,653.57,2.2737665]
[1749420730669,1.02019194,654.22,653.57,2.2737665]
[1749420731072,1.437,654.23,653.57,2.2737665]
[1749420731274,1.437,654.23,653.55,2.2737665]
[1749420731475,1.437,654.23,653.54,2.2737665]
[1749420731677,1.437,654.23,653.56,2.2737665]
[1749420734076,1.437,654.23,653.57,2.2737665]
[1749420734279,2.45719194,654.23,653.57,2.2737665]
[1749420734575,1.02019194,654.22,653.57,2.2737665]
[1749420735075,1.437,654.23,653.58,2.2737665]
[1749420735676,0.26605606,654.24,653.58,2.2737665]
[1749420737080,0.26605606,654.24,653.6,2.2737665]
[1749420737581,0.26605606,654.24,653.61,2.2737665]
[1749420738377,0.26605606,654.24,653.63,2.2737665]
[1749420738679,0.26605606,654.24,653.67,2.2737665]
[1749420739278,1.579,654.23,653.67,2.2737665]
[1749420739877,2.60687144,654.23,653.67,2.2737665]
[1749420747178,2.60687144,654.23,653.66,2.2737665]
[1749420748078,2.60687144,654.23,653.62,2.2737665]
[1749420749383,1.02673233,654.22,653.62,2.2737665]
[1749420749583,2.60573233,654.23,653.62,2.2737665]
[1749420749879,2.60573233,654.23,653.6,2.2737665]
[1749420751485,2.60573233,654.23,653.58,2.2737665]
[1749420754583,2.60573233,654.23,653.57,2.2737665]
[1749420755286,2.60573233,654.23,653.55,2.2737665]
[1749420755986,1.02673233,654.22,653.48,2.2737665]
[1749420756287,1.02673233,654.21,653.48,2.2737665]
[1749420756488,1.02673233,654.2,653.48,2.2737665]
[1749420756685,1.02673233,654.22,653.48,2.2737665]
[1749420756884,1.579,654.23,653.47,2.2737665]
[1749420756885,1.02673233,654.21,653.47,2.2737665]
[1749420757090,1.02673233,654.2,653.46,2.2737665]
[1749420757389,1.02673233,654.19,653.46,2.2737665]
[1749420757685,1.02673233,654.22,653.46,2.2737665]
[1749420757890,1.02673233,654.21,653.46,2.2737665]
[1749420758091,1.02673233,654.2,653.46,2.2737665]
[1749420758286,1.02673233,654.19,653.46,2.2737665]
[1749420758487,1.02673233,654.22,653.45,2.2737665]
[1749420758687,1.02673233,654.21,653.45,2.2737665]
[1749420758987,1.02673233,654.2,653.45,2.2737665]
[1749420759187,1.02673233,654.19,653.44,2.2737665]
[1749420759387,1.02673233,654.22,653.44,2.2737665]
[1749420759592,1.02673233,654.21,653.44,2.2737665]
[1749420759792,1.02673233,654.2,653.45,2.2737665]
[1749420759988,1.02673233,654.19,653.45,2.2737665]
[1749420760293,1.02673233,654.22,653.45,2.2737665]
[1749420760593,1.02673233,654.21,653.45,2.2737665]
[1749420760788,1.02673233,654.22,653.46,2.2737665]
[1749420760993,2.60573233,654.23,653.46,2.2737665]
[1749420761189,2.60573233,654.23,653.47,2.2737665]
[1749420761592,2.60573233,654.23,653.48,2.2737665]
[1749420761993,2.60573233,654.23,653.5,2.2737665]
[1749420762293,1.02673233,654.23,653.56,2.2737665]
[1749420762589,0.26605606,654.24,653.56,2.2737665]
[1749420764895,1.453,654.23,653.56,2.2737665]
[1749420766595,1.453,654.23,653.57,2.2737665]
[1749420767194,1.453,654.23,653.58,2.2737665]
[1749420767398,2.47973233,654.23,653.58,2.2737665]
[1749420767693,1.453,654.23,653.58,2.2737665]
[1749420769195,1.453,654.23,652.87,0.3063397]
[1749420771302,1.453,654.23,653.71,2.28583943]
[1749420771498,1.453,654.23,653.67,2.28583943]
[1749420771999,1.453,654.23,653.68,2.28583943]
[1749420772399,1.453,654.23,653.71,2.28583943]
[1749420776102,1.453,654.23,653.72,2.28583943]
[1749420776605,1.453,654.23,653.71,2.28583943]
[1749420777304,1.453,654.23,653.72,2.28583943]
[1749420777503,1.453,654.23,653.73,2.28583943]
[1749420777804,1.453,654.23,653.72,2.28583943]
[1749420778607,1.453,654.23,653.73,2.28583943]
[1749420779703,1.453,654.23,653.74,2.28583943]
[1749420780106,1.453,654.23,653.73,2.28583943]
[1749420780308,2.484663,654.23,653.73,2.28583943]
[1749420780505,1.453,654.23,653.73,2.28583943]
[1749420781308,1.453,654.23,653.74,2.28583943]
[1749420782213,1.453,654.23,653.72,2.28583943]
[1749420782611,1.453,654.23,653.69,2.28583943]
[1749420784015,1.453,654.23,653.6,2.28583943]
[1749420784212,1.03209079,654.22,653.6,2.28583943]
[1749420784411,2.48509079,654.23,653.6,2.28583943]
[1749420784916,1.03209079,654.22,653.59,2.28583943]
[1749420785113,1.03209079,654.21,653.59,2.28583943]
[1749420785314,1.03209079,654.22,653.59,2.28583943]
[1749420785613,1.03209079,654.21,653.59,2.28583943]
[1749420785814,1.03209079,654.22,653.6,2.28583943]
[1749420786021,1.03209079,654.22,653.59,2.28583943]
[1749420786917,1.03209079,654.22,653.6,2.28583943]
[1749420787217,1.03209079,654.21,653.58,2.28583943]
[1749420787517,1.03209079,654.2,653.56,2.28583943]
[1749420787712,1.03209079,654.19,653.57,2.28583943]
[1749420787917,1.03209079,654.18,653.57,2.28583943]
[1749420788118,1.03209079,654.22,653.56,2.28583943]
[1749420788311,1.03209079,654.21,653.56,2.28583943]
[1749420788516,1.03209079,654.2,653.57,2.28583943]
[1749420788717,1.03209079,654.19,653.57,2.28583943]
[1749420788917,1.453,654.23,652.89,0.26608658]
[1749420788918,1.03209079,654.18,653.56,2.28583943]
[1749420789215,1.03209079,654.22,653.55,2.28583943]
[1749420789415,1.03209079,654.21,653.55,2.28583943]
[1749420789613,1.03209079,654.2,653.55,2.28583943]
[1749420789818,1.03209079,654.19,653.55,2.28583943]
[1749420790119,1.03209079,654.18,653.55,2.28583943]
[1749420790315,1.03209079,654.22,653.55,2.28583943]
[1749420790618,1.03209079,654.21,653.55,2.28583943]
[1749420790817,1.03209079,654.2,653.55,2.28583943]
[1749420791014,1.03209079,654.19,653.59,2.28583943]
[1749420791214,1.03209079,654.18,653.55,2.28583943]
[1749420791516,1.03209079,654.17,653.55,2.28583943]
[1749420791718,1.03209079,654.16,653.54,2.28583943]
[1749420791919,1.03209079,654.15,653.54,2.28583943]
[1749420792120,1.03209079,654.21,653.55,2.28583943]
[1749420792317,1.03209079,654.2,653.55,2.28583943]
[1749420792617,1.03209079,654.19,653.54,2.28583943]
[1749420792819,1.03209079,654.18,653.52,2.28583943]
[1749420793022,1.03209079,654.17,653.52,2.28583943]
[1749420793222,1.03209079,654.16,653.5,2.28583943]
[1749420793518,1.03209079,654.15,653.5,2.28583943]
[1749420793823,1.03209079,654.14,653.49,2.28583943]
[1749420794017,1.03209079,654.13,653.5,2.28583943]
[1749420794221,1.453,654.23,653.03,3.80973239]
[1749420794222,2.66794079,654.2,653.49,2.28583943]
[1749420794416,2.11951414,654.19,653.48,2.28583943]
[1749420794618,1.58026465,654.18,653.48,2.28583943]
[1749420794924,1.03209079,654.17,653.48,2.28583943]
[1749420795224,1.03209079,654.16,653.48,2.28583943]
[1749420795519,1.03209079,654.15,653.48,2.28583943]
[1749420795723,1.03209079,654.14,653.48,2.28583943]
[1749420796025,1.03209079,654.17,653.49,2.28583943]
[1749420796320,1.03209079,654.16,653.48,2.28583943]
[1749420796519,1.03209079,654.15,653.48,2.28583943]
[1749420796722,1.03209079,654.18,653.48,2.28583943]
[1749420796920,1.03209079,654.17,653.48,2.28583943]
[1749420797124,1.03209079,654.16,653.48,2.28583943]
[1749420797323,2.66749757,654.21,653.48,2.28583943]
[1749420797525,2.66749757,654.2,653.48,2.28583943]
[1749420797821,1.03209079,654.19,653.48,2.28583943]
[1749420798020,1.03209079,654.18,653.48,2.28583943]
[1749420798222,2.59041708,654.23,653.48,2.28583943]
[1749420798223,1.03209079,654.17,653.48,2.28583943]
[1749420798426,1.03209079,654.2,653.47,2.28583943]
[1749420798722,1.03209079,654.19,653.47,2.28583943]
[1749420799025,1.03209079,654.18,653.48,2.28583943]
[1749420799323,1.03209079,654.19,653.49,2.28583943]
[1749420799523,1.03209079,654.21,653.5,2.28583943]
[1749420799721,1.03209079,654.2,653.5,2.28583943]
[1749420799922,1.13741708,654.18,653.42,2.28583943]
[1749420800125,2.16950787,654.17,653.25,2.28583943]
[1749420800323,4.56441219,654.16,653.1,2.28583943]
[1749420800523,3.88883705,654.15,653.0,2.28583943]
[1749420800726,3.88882463,654.14,653.03,2.28583943]
[1749420800925,1.13741708,654.02,652.87,0.3063397]
[1749420801130,1.03209079,654.01,652.87,0.3063397]
[1749420801426,1.03209079,654.0,652.87,0.3063397]
[1749420801626,1.03209079,653.99,652.87,0.3063397]
[1749420801929,1.03209079,653.98,652.87,0.3063397]
[1749420802130,1.03209079,653.97,652.87,0.3063397]
[1749420802431,1.03209079,653.96,652.87,0.3063397]
[1749420802831,1.03209079,653.95,652.87,0.3063397]
[1749420803030,1.03209079,653.94,652.87,0.3063397]
[1749420803230,1.03209079,653.93,652.87,0.3063397]
[1749420803427,1.03209079,653.92,652.87,0.3063397]
[1749420803730,1.03209079,653.91,652.87,0.3063397]
[1749420803928,1.03209079,653.9,652.87,0.3063397]
[1749420804128,1.03209079,653.89,652.87,0.3063397]
[1749420804330,1.03209079,653.88,652.87,0.3063397]
[1749420804527,1.03209079,653.87,652.87,0.3063397]
[1749420804732,1.03209079,653.86,652.87,0.3063397]
[1749420804928,1.03209079,653.85,652.87,0.3063397]
[1749420805129,2.27483416,654.13,652.87,0.3063397]
[1749420805130,1.03209079,653.84,652.87,0.3063397]
[1749420805333,1.03209079,653.83,652.87,0.3063397]
[1749420805530,1.03209079,653.82,652.87,0.3063397]
[1749420805833,1.03209079,653.81,652.87,0.3063397]
[1749420806031,1.03209079,653.8,652.87,0.3063397]
[1749420806235,1.03209079,653.79,652.87,0.3063397]
[1749420806431,1.03209079,653.78,652.87,0.3063397]
[1749420806635,1.03209079,653.77,652.87,0.3063397]
[1749420806835,1.03209079,653.76,652.87,0.3063397]
[1749420807034,1.03209079,653.75,652.87,0.3063397]
[1749420807234,1.03209079,653.86,652.87,0.3063397]
[1749420807531,1.03209079,653.85,652.87,0.3063397]
[1749420807730,1.07744951,653.92,652.87,0.3063397]
[1749420807731,1.03209079,653.84,652.87,0.3063397]
[1749420807934,1.03209079,653.83,652.87,0.3063397]
[1749420808133,1.03209079,653.82,652.87,0.3063397]
[1749420808332,1.03209079,653.81,652.87,0.3063397]
[1749420808531,1.03209079,653.8,652.87,0.3063397]
[1749420808732,1.03209079,653.79,652.87,0.3063397]
[1749420808933,1.03209079,653.78,652.87,0.3063397]
[1749420809134,1.03209079,653.77,652.87,0.3063397]
[1749420809332,1.03209079,653.76,652.87,0.3063397]
[1749420809738,2.27483416,654.12,652.87,0.3063397]
[1749420809933,3.13998333,654.11,652.87,0.3063397]
[1749420810233,1.50806951,654.01,652.87,0.3063397]
[1749420810536,1.13105213,653.88,652.87,0.3063397]
[1749420811332,2.29075054,653.98,652.87,0.3063397]
[1749420811535,2.28891678,653.97,652.87,0.3063397]
[1749420811737,1.50806951,654.01,652.87,0.3063397]
[1749420812437,1.12577509,653.96,652.87,0.3063397]
[1749420813433,2.3388093,653.96,652.87,0.3063397]
[1749420813637,1.07472008,653.95,652.87,0.3063397]
[1749420813937,1.75602214,654.0,652.87,0.3063397]
[1749420814137,2.28777153,654.09,652.87,0.3063397]
[1749420814335,2.59354452,654.08,652.87,0.3063397]
[1749420814535,2.06181337,654.07,652.87,0.3063397]
[1749420814839,1.92285623,654.06,652.87,0.3063397]
[1749420815034,0.30578701,654.05,652.87,0.3063397]
[1749420822443,1.12875522,653.91,652.87,0.3063397]
[1749420822643,1.11506056,653.9,652.87,0.3063397]
[1749420822845,1.11506056,653.89,652.87,0.3063397]
[1749420823044,1.11506056,653.88,652.87,0.3063397]
[1749420823242,1.11506056,653.87,652.87,0.3063397]
[1749420823445,1.11506056,653.86,652.87,0.3063397]
[1749420823647,1.11506056,653.85,652.87,0.3063397]
[1749420823844,1.11506056,653.84,652.87,0.3063397]
[1749420824052,1.11506056,653.83,652.87,0.3063397]
[1749420824249,1.11506056,653.82,652.87,0.3063397]
[1749420824445,1.11506056,653.81,652.87,0.3063397]
[1749420824646,1.11506056,653.8,652.87,0.3063397]
[1749420824849,1.11506056,653.79,652.87,0.3063397]
[1749420825145,1.11506056,653.84,652.87,0.3063397]
[1749420825450,1.11506056,653.83,652.87,0.3063397]
[1749420825647,1.11506056,653.82,652.87,0.3063397]
[1749420825849,1.11506056,653.81,652.87,0.3063397]
[1749420826048,1.11506056,653.84,652.87,0.3063397]
[1749420826247,1.11506056,653.83,652.87,0.3063397]
[1749420826450,1.11506056,653.82,652.87,0.3063397]
[1749420826645,1.11506056,653.84,652.87,0.3063397]
[1749420826951,1.11506056,653.83,652.87,0.3063397]
[1749420827150,1.11506056,653.82,652.87,0.3063397]
[1749420827351,1.11506056,653.81,652.87,0.3063397]
[1749420827651,1.11506056,653.84,652.87,0.3063397]
[1749420827851,1.11506056,653.83,652.87,0.3063397]
[1749420828046,1.11506056,653.84,652.87,0.3063397]
[1749420828248,1.11506056,653.83,652.87,0.3063397]
[1749420828447,1.11506056,653.84,652.87,0.3063397]
[1749420829353,1.11506056,653.83,652.87,0.3063397]
[1749420829552,1.11506056,653.84,652.87,0.3063397]
[1749420830153,1.129,653.85,652.87,0.3063397]
[1749420831450,2.24406056,653.85,652.87,0.3063397]
[1749420831653,1.11506056,653.84,652.87,0.3063397]
[1749420832156,1.129,653.85,652.87,0.3063397]
[1749420837455,2.24406056,653.85,652.87,0.3063397]
[1749420837651,1.11506056,653.84,652.87,0.3063397]
[1749420838056,1.129,653.85,652.87,0.3063397]
[1749420841458,1.129,653.85,652.9,2.27313139]
[1749420842060,1.129,653.85,652.91,2.27313139]
[1749420842458,2.24406056,653.85,652.94,2.27313139]
[1749420842657,1.11506056,653.84,652.93,2.27313139]
[1749420843159,1.129,653.85,652.93,2.27313139]
[1749420843455,1.129,653.85,652.95,2.27313139]
[1749420843657,1.129,653.85,652.91,2.27313139]
[1749420843960,1.129,653.85,652.93,2.27313139]
[1749420844258,1.129,653.85,652.94,2.27313139]
[1749420844458,1.129,653.85,652.97,2.27313139]
[1749420844657,1.129,653.85,652.98,2.27313139]
[1749420844862,1.129,653.85,652.97,2.27313139]
[1749420845058,1.129,653.85,653.0,2.27313139]
[1749420845258,1.129,653.85,653.01,2.27313139]
[1749420845458,1.129,653.85,653.0,2.27313139]
[1749420845661,1.129,653.85,653.01,2.27313139]
[1749420845957,1.11506056,653.94,653.01,2.27313139]
[1749420846159,0.30578701,654.05,653.01,2.27313139]
[1749420846362,0.30578701,654.05,653.02,2.27313139]
[1749420847263,0.30578701,654.05,653.03,2.27313139]
[1749420847461,2.64037073,654.05,653.04,2.27313139]
[1749420847660,2.19256403,654.04,653.04,2.27313139]
[1749420847861,2.19256114,654.03,653.04,2.27313139]
[1749420848059,1.11506056,654.02,653.12,2.27313139]
[1749420848261,1.63,654.02,653.17,2.27313139]
[1749420848863,1.63,654.02,653.18,2.27313139]
[1749420849361,1.63,654.02,653.2,2.27313139]
[1749420850065,0.26622907,653.82,653.2,2.27313139]
[1749420850262,0.26622907,653.82,653.18,2.27313139]
[1749420850862,0.26622907,653.82,653.19,2.27313139]
[1749420851266,0.26622907,653.82,653.2,2.27313139]
[1749420852262,0.26622907,653.82,653.22,2.27313139]
[1749420853762,0.26622907,653.82,653.23,2.27313139]
[1749420853968,0.26622907,653.82,653.22,2.27313139]
[1749420854162,0.26622907,653.82,653.23,2.27313139]
[1749420854666,0.26622907,653.82,653.25,2.27313139]
[1749420855366,0.26622907,653.82,653.27,2.27313139]
[1749420856469,0.26622907,653.82,653.28,2.27313139]
[1749420857068,0.26622907,653.82,653.27,2.27313139]
[1749420857268,0.26622907,653.82,653.28,2.27313139]
[1749420857869,0.26622907,653.82,653.29,2.27313139]
[1749420859272,0.26622907,653.82,653.25,2.27313139]
[1749420859870,0.26622907,653.82,653.26,2.27313139]
[1749420860466,0.26622907,653.82,653.27,2.27313139]
[1749420860665,0.26622907,653.82,653.26,2.27313139]
[1749420865366,0.26622907,653.82,653.25,2.27313139]
[1749420868568,0.26622907,653.82,653.26,2.27313139]
[1749420869265,0.26622907,653.82,653.29,2.27313139]
[1749420870172,0.26622907,653.82,653.33,2.27313139]
[1749420871074,0.26622907,653.82,653.34,2.27313139]
[1749420871274,0.26622907,653.82,653.33,2.27313139]
[1749420871873,0.26622907,653.82,653.34,2.27313139]
[1749420872974,0.26622907,653.82,653.33,2.27313139]
[1749420875670,0.26622907,653.82,653.26,2.27313139]
[1749420875969,0.26622907,653.82,653.15,2.27313139]
[1749420876674,0.26622907,653.82,653.14,2.27313139]
[1749420876874,0.26622907,653.82,653.15,2.27313139]
[1749420879575,0.26622907,653.82,653.14,2.27313139]
[1749420880877,0.26622907,653.82,653.15,2.27313139]
[1749420882175,0.26622907,653.82,653.13,2.27313139]
[1749420883677,0.26622907,653.82,653.14,2.27313139]
[1749420883877,0.26622907,653.82,653.1,2.27313139]
[1749420884380,0.26622907,653.82,653.11,2.27313139]
[1749420884779,0.26622907,653.82,653.1,2.27313139]
[1749420885683,0.26622907,653.82,653.15,2.27313139]
[1749420886078,0.26622907,653.82,653.14,2.27313139]
[1749420886881,0.26622907,653.82,652.87,0.3063397]
[1749420886882,0.26622907,653.82,653.12,2.27313139]
[1749420887279,0.26622907,653.82,653.13,2.27313139]
[1749420890184,0.26622907,653.82,653.12,2.27313139]
[1749420890884,0.26622907,653.82,653.11,2.27313139]
[1749420891087,1.274,653.81,653.1,2.27313139]
[1749420891886,1.274,653.81,653.09,2.27313139]
[1749420892392,1.274,653.81,653.08,2.27313139]
[1749420892587,1.274,653.81,653.1,2.27313139]
[1749420893786,1.274,653.81,653.08,2.27313139]
[1749420894984,2.31906764,653.81,653.08,2.27313139]
[1749420895188,1.04506764,653.8,653.08,2.27313139]
[1749420895583,1.274,653.81,653.08,2.27313139]
[1749420896687,1.274,653.81,653.09,2.27313139]
[1749420896885,1.274,653.81,653.1,2.27313139]
[1749420897289,1.274,653.81,653.09,2.27313139]
[1749420898092,1.274,653.81,653.05,2.27313139]
[1749420898992,1.274,653.81,653.04,2.27313139]
[1749420899392,1.274,653.81,653.05,2.27313139]
[1749420899589,1.274,653.81,653.04,2.27313139]
[1749420900689,1.274,653.81,653.07,2.27313139]
[1749420901696,0.26630445,653.63,653.07,2.27313139]
[1749420902096,0.26630445,653.63,653.08,2.27313139]
[1749420902294,0.26630445,653.63,653.06,2.27313139]
[1749420903093,0.26630445,653.63,653.05,2.27313139]
[1749420903598,0.26630445,653.63,653.04,2.27313139]
[1749420903793,0.26630445,653.63,653.05,2.27313139]
[1749420904693,0.26630445,653.63,653.06,2.27313139]
[1749420905393,0.26630445,653.63,653.07,2.27313139]
[1749420905794,0.26630445,653.63,653.09,2.27313139]
[1749420905996,0.26630445,653.63,652.96,2.27313139]
[1749420906199,0.26630445,653.63,652.95,2.27313139]
[1749420906493,0.26630445,653.63,652.94,2.27313139]
[1749420906792,0.26630445,653.63,652.95,2.27313139]
[1749420907199,0.26630445,653.63,652.96,2.27313139]
[1749420907997,0.26630445,653.63,652.97,2.27313139]
[1749420908196,1.366,653.62,652.97,2.27313139]
[1749420908996,1.366,653.62,652.98,2.27313139]
[1749420909200,1.366,653.62,652.97,2.27313139]
[1749420909697,1.366,653.62,652.87,0.3063397]
[1749420909698,1.366,653.62,652.98,2.27313139]
[1749420910098,1.366,653.62,652.97,2.27313139]
[1749420910400,1.366,653.62,652.98,2.27313139]
[1749420915602,1.366,653.62,652.99,2.27313139]
[1749420916099,1.366,653.62,653.17,2.27313139]
[1749420916302,1.366,653.62,653.18,2.27313139]
[1749420917403,1.366,653.62,653.19,2.27313139]
[1749420917604,1.366,653.62,653.18,2.27313139]
[1749420917800,1.366,653.62,653.14,2.27313139]
[1749420918002,1.366,653.62,653.15,2.27313139]
[1749420918399,1.366,653.62,653.14,2.27313139]
[1749420918601,1.366,653.62,652.87,0.3063397]
[1749420918602,1.366,653.62,653.15,2.27313139]
[1749420919400,1.366,653.62,653.16,2.27313139]
[1749420919802,1.366,653.62,653.14,2.27313139]
[1749420920002,1.366,653.62,653.15,2.27313139]
[1749420920404,1.366,653.62,653.21,2.27313139]
[1749420920604,1.366,653.62,653.23,2.27313139]
[1749420921503,1.366,653.62,653.24,2.27313139]
[1749420924406,1.366,653.62,653.23,2.27313139]
[1749420924602,1.366,653.62,653.24,2.27313139]
[1749420927404,1.366,653.62,653.23,2.27313139]
[1749420927608,1.366,653.62,653.28,2.27313139]
[1749420928107,1.366,653.62,653.27,2.27313139]
[1749420929008,1.366,653.62,653.28,2.27313139]
[1749420929704,1.366,653.62,653.32,2.27313139]
[1749420932712,1.366,653.62,653.33,2.27313139]
[1749420933209,1.366,653.62,653.32,2.27313139]
[1749420934611,1.366,653.62,653.33,2.27313139]
[1749420935310,1.366,653.62,653.32,2.27313139]
[1749420936015,1.366,653.62,653.33,2.27313139]
[1749420937016,1.366,653.62,653.32,2.27313139]
[1749420937314,1.366,653.62,653.31,2.27313139]
[1749420937810,1.366,653.62,653.32,2.27313139]
[1749420940613,1.366,653.62,653.31,2.27313139]
[1749420941115,1.366,653.62,653.32,2.27313139]
[1749420941716,1.366,653.62,653.31,2.27313139]
[1749420942820,1.366,653.62,653.32,2.27313139]
[1749420943921,1.366,653.62,653.31,2.27313139]
[1749420947125,0.26630445,653.63,653.31,2.27313139]
[1749420947419,0.26620158,653.72,653.27,2.27313139]
[1749420947619,0.26620158,653.72,653.25,2.27313139]
[1749420948521,0.26620158,653.72,652.87,0.3063397]
[1749420948522,0.26620158,653.72,653.23,2.27313139]
[1749420949719,0.26620158,653.72,653.22,2.27313139]
[1749420949919,1.549,653.71,653.22,2.27313139]
[1749420952024,1.549,653.71,653.21,2.27313139]
[1749420952724,1.549,653.71,653.19,2.27313139]
[1749420954422,1.549,653.71,653.2,2.27313139]
[1749420955823,1.549,653.71,653.21,2.27313139]
[1749420956227,1.549,653.71,653.2,2.27313139]
[1749420956726,1.549,653.71,653.21,2.27313139]
[1749420957128,1.549,653.71,653.24,2.27313139]
[1749420957325,1.549,653.71,653.26,2.27313139]
[1749420958328,1.549,653.71,653.29,2.27313139]
[1749420959425,1.549,653.71,653.31,2.27313139]
[1749420961531,1.549,653.71,653.28,2.27313139]
[1749420961927,1.549,653.71,653.26,2.27313139]
[1749420962331,1.549,653.71,653.27,2.27313139]
[1749420962529,1.549,653.71,653.29,2.27313139]
[1749420963935,1.549,653.71,653.28,2.27313139]
[1749420964234,1.549,653.71,653.29,2.27313139]
[1749420965334,1.549,653.71,653.3,2.27313139]
[1749420967334,1.549,653.71,653.29,2.27313139]
[1749420967935,1.549,653.71,653.3,2.27313139]
[1749420968235,1.549,653.71,653.31,2.27313139]
[1749420968835,1.549,653.71,653.3,2.27313139]
[1749420969240,1.549,653.71,653.31,2.27313139]
[1749420970139,1.549,653.71,653.32,2.27313139]
[1749420970437,1.549,653.71,653.33,2.27313139]
[1749420970741,1.549,653.71,653.32,2.27313139]
[1749420971338,1.549,653.71,653.35,2.27313139]
[1749420971839,1.549,653.71,653.38,2.27313139]
[1749420972239,1.549,653.71,653.32,2.27313139]
[1749420972542,1.549,653.71,652.87,0.3063397]
[1749420972543,1.549,653.71,653.33,2.27313139]
[1749420973442,1.549,653.71,653.35,2.27313139]
[1749420973943,1.549,653.71,653.36,2.27313139]